Cogmind - Beta 16 @@@ ROGUE MODE // 2025.12.04 @ 11:41:15 Player: most_lamentable Result: Destroyed by G-47 Trooper with Particle Gun Performance ------------- Evolutions (2) 1000 Regions Visited (4) 800 Robots Destroyed (9) 45 Value Destroyed (297) 297 Prototype IDs (1) 20 Alien Tech Used (0) 0 Bonus (27) 27 TOTAL SCORE: 2189 Bonus ------- Follower Combat Kills 27 Cogmind --------- Core Integrity 0/550 Matter 150/300 Energy 112/150 System Corruption 16% Temperature Cool (31) Movement Core (300) Ox5 Location -8/Storage Parts ------- > --- POWER (1) -------- Light Angular Momentum Engine > --- PROPULSION (3) --- (None) > --- UTILITY (3) ------ Recoil Stabilizer Shock Absorption System > --- WEAPON (4) ------- Heavy EM Shotgun > --- INVENTORY (5) ---- Titanium Leg Large Storage Unit System Shield Peak State ------------ > --- POWER ------------ Subdweller Power Source > --- PROPULSION ------- Aluminum Leg Aluminum Leg Titanium Leg > --- UTILITY ---------- Large Storage Unit Advanced Targeting Computer Shock Absorption System > --- WEAPON ----------- Heavy Laser Heavy Laser Heavy Laser Heavy Laser > --- INVENTORY -------- Subdweller Power Source Subdweller Monowheel Improved Heat Sink Disposable Heat Sink Large Storage Unit Salvage Targeting Computer Recoil Stabilizer Actuator Array Shock Absorption System System Shield Battle Rifle Minigun Flamer Scrap Shield Fragment [Rating: 34] Favorites ----------- Power Subdweller Power Source Engine Subdweller Power Source Propulsion Aluminum Leg Treads Light Treads Leg Aluminum Leg Wheel Subdweller Monowheel Utility Small Storage Unit Device Disposable Heat Sink Storage Small Storage Unit Processor Advanced Targeting Computer Protection Light Armor Plating Weapon Heavy Laser Energy Gun Heavy Laser Ballistic Gun Light Assault Rifle Build | -11 -10 -10 -8 -8 ------- Run | Yrd Mat Sub Mat Sto Slots Evolved 4 | . . . 4 . Power . | . . . . . Propulsion 1 | . . . 1 . Utility 1 | . . . 1 . Weapon 2 | . . . 2 . Parts Attached 31 | 6 2 7 7 9 Power 4 | 1 . 1 . 2 Engine 4 | 1 . 1 . 2 Core . | . . . . . Reactor . | . . . . . Propulsion 6 | 2 2 . 1 1 Treads 2 | . 2 . . . Leg 3 | 2 . . . 1 Wheel 1 | . . . 1 . Hover . | . . . . . Flight . | . . . . . Utility 8 | 1 . 2 1 4 Device 4 | . . 1 . 3 Storage 2 | 1 . . 1 . Processor 1 | . . . . 1 Hackware . | . . . . . Protection 1 | . . 1 . . Artifact . | . . . . . Weapon 13 | 2 . 4 5 2 Energy Gun 8 | . . 2 5 1 Energy Cannon . | . . . . . Ballistic Gun 4 | 2 . 2 . . Ballistic Cannon . | . . . . . Launcher . | . . . . . Special Weapon 1 | . . . . 1 Impact Weapon . | . . . . . Slashing Weapon . | . . . . . Piercing Weapon . | . . . . . Special Melee Weapon . | . . . . . Unidentified Prototypes 1 | . . . . 1 Parts Lost 17 | . . 4 . 13 Power 2 | . . 1 . 1 Propulsion 5 | . . 2 . 3 Utility 3 | . . . . 3 Weapon 7 | . . 1 . 6 Highest Loss Streak 13 | . . 2 . 13 To Critical Strikes 2 | . . . . 2 Average Backups 7 | 4 6 7 6 11 Power 1 | . 1 1 1 . Propulsion 2 | 2 4 2 . . Utility 2 | . . . 2 6 Weapon 2 | 1 1 2 3 3 Tool/Special . | . . . . . Unused Backups 10 | . . 3 . 7 Power 1 | . . 1 . . Propulsion 3 | . . 2 . 1 Utility 5 | . . . . 5 Weapon 1 | . . . . 1 Tool/Special . | . . . . . Average Slot Usage (%) 91 | . 85 95 97 86 Engine 11 | . 14 14 9 7 Treads 7 | . 1 19 . . Leg 14 | . 27 7 18 15 Wheel 3 | . . . 9 6 Device 4 | . . 3 8 5 Storage 11 | . 14 14 9 8 Protection 6 | . . 7 9 6 Energy Gun 16 | . . 5 28 32 Ballistic Gun 13 | . 28 22 5 . Peak Build Rating 34 | 6 6 11 28 34 Average Rating 15 | 3 6 8 25 26 On Entrance 10 | . 6 6 11 28 Avg Prop Armor Cover (%) 4 | . . 6 2 3 Naked Turns 5 | . . . . 5 Heaviest Build 45 | 13 13 19 45 45 Greatest Support 40 | 20 40 40 20 37 Greatest Overweight (x) 4 | 3 . . 2 4 Average Overweight (x) . | . . . 1 1 Largest Inventory Capacity 15 | 8 8 8 15 15 Average Capacity 10 | 7 8 8 11 14 Most Carried 15 | 8 7 8 10 15 Average Carried 8 | 4 6 7 7 12 Final Capacity 15 | 8 8 8 15 5 Final Carried 10 | 6 7 7 10 3 Class Distribution -------------------- 59% | Mutant 29% | Tank 10% | Gunner Dominant Class ---------------- Mutant | -10/Materials Mutant | -10/Subcaves Tank | -8/Materials Tank | -8/Storage Resources | -11 -10 -10 -8 -8 ----------- Run | Yrd Mat Sub Mat Sto Matter Collected 466 | 220 34 157 . 55 Remotely . | . . . . . Salvage Created 336 | . 34 204 . 98 Parts 18 | . 7 9 . 2 Haulers Intercepted . | . . . . . Recyclers Shooed . | . . . . . Parts Field Recycled . | . . . . . Retrieved Matter . | . . . . . Parts Self-Destructed 1 | . . 1 . . Prevented . | . . . . . Parts Restored . | . . . . . Kills | -11 -10 -10 -8 -8 ------- Run | Yrd Mat Sub Mat Sto Combat Hostiles Destroyed 9 | . 3 4 . 2 Guns 9 | . 3 4 . 2 Classes Destroyed 5 | . 1 2 . 2 Swarmer 3 | . 3 . . . Grunt 1 | . . . . 1 Duelist 1 | . . . . 1 Artisan 1 | . . 1 . . Subdweller 4 | . . 4 . . Best Kill Streak 3 | . 3 2 . 2 Combat Bots Only 3 | . 3 2 . 2 Max Kills in Single Turn 1 | . 1 1 . 1 Gunslinging . | . . . . . Exploded . | . . . . . Melee . | . . . . . Uniques/NPCs Destroyed . | . . . . . Combat | -11 -10 -10 -8 -8 -------- Run | Yrd Mat Sub Mat Sto Hostile Shots Fired 123 | . 10 40 . 73 Missed 23 | . 2 10 . 11 Hits 100 | . 8 30 . 62 Melee 10 | . . . . 10 Projectile 90 | . 8 30 . 52 Critical Strikes 7 | . . . . 7 Damage Taken 2077 | . 57 699 . 1321 Core 610 | . 8 50 . 552 Absorbed by Shields . | . . . . . Core Remaining (%) 88 | 100 . 76 . . Volleys Fired 41 | . 5 25 . 11 Largest 4 | . 2 2 . 4 Hottest 276 | . 40 85 . 276 Shots Fired 90 | . 10 50 . 30 Gun 90 | . 10 50 . 30 Cannon . | . . . . . Launcher . | . . . . . Special . | . . . . . Kinetic 54 | . 10 42 . 2 Thermal 31 | . . 5 . 26 Explosive . | . . . . . Electromagnetic 5 | . . 3 . 2 Robot Hit Streak 31 | . 4 31 . 13 Robot Miss Streak 2 | . 2 1 . 2 Penetration Max . | . . . . . Secondary Targets 2 | . 1 . . 1 Max Gunslinging Chain 1 | . 1 . . 1 Shots Hit Robots 62 | . 5 37 . 20 Core Hits 25 | . 3 15 . 7 Critical Kills . | . . . . . Critical Parts Destroyed . | . . . . . Critical Strikes 2 | . . . . 2 Burn 2 | . . . . 2 Melee Attacks . | . . . . . Impact . | . . . . . Slashing . | . . . . . Piercing . | . . . . . Sneak Attacks . | . . . . . Combat Hostiles . | . . . . . Follow-up Attacks . | . . . . . Damage Inflicted 745 | . 55 305 . 385 Guns 745 | . 55 305 . 385 Cannons . | . . . . . Explosions . | . . . . . Melee . | . . . . . Ramming . | . . . . . Kinetic 353 | . 55 271 . 27 Thermal 302 | . . . . 302 Explosive . | . . . . . Electromagnetic 90 | . . 34 . 56 Impact . | . . . . . Slashing . | . . . . . Piercing . | . . . . . Highest Corruption 16 | . . . . 16 Average Corruption 11 | . . . . 11 Corruption Purged . | . . . . . Corruption Blocked . | . . . . . Effects 1 | . . . . 1 Message Errors 1 | . . . . 1 Overload Shots . | . . . . . Overflow Damage . | . . . . . Projectiles . | . . . . . Explosions . | . . . . . Melee . | . . . . . Knockbacks . | . . . . . Impact . | . . . . . Kinetic . | . . . . . Secondary . | . . . . . Self-Inflicted Damage . | . . . . . Shots . | . . . . . Rammed . | . . . . . Targets Rammed . | . . . . . Kicked . | . . . . . Crushed . | . . . . . Highest Temperature 846 | . . 19 . 846 Average Temperature 372 | . . 10 . 415 Received Heat Transfer 705 | . . 201 . 504 Effects 26 | . . . . 26 Shutdowns 3 | . . . . 3 Energy Bleed 4 | . . . . 4 Interference 1 | . . . . 1 Matter Decay 3 | . . . . 3 Short Circuit 2 | . . . . 2 Damage (minor) 3 | . . . . 3 Damage (major) 8 | . . . . 8 Damage (core) 2 | . . . . 2 Siege Activations . | . . . . . Martial Activations . | . . . . . Shielding Activations . | . . . . . Robots Disrupted . | . . . . . Combat Hostiles . | . . . . . Robots Corrupted . | . . . . . Combat Hostiles . | . . . . . Parts Fried . | . . . . . Impact Corruptions . | . . . . . Robots Melted . | . . . . . Combat Hostiles . | . . . . . Parts Melted 4 | . . 2 . 2 Heat Transferred 629 | . . . . 629 Parts Sabotaged . | . . . . . Parts Stolen . | . . . . . Parts Stripped . | . . . . . Power Chain Reactions . | . . . . . Alert | -11 -10 -10 -8 -8 ------- Run | Yrd Mat Sub Mat Sto Maximum Alert Level . | . . . . . Low Security (%) 100 | 100 100 . 100 100 Level 1 . | . . . . . Level 2 . | . . . . . Level 3 . | . . . . . Level 4 . | . . . . . Level 5 . | . . . . . High Security . | . . . . . Max Security . | . . . . . Peak Influence 75 | . 75 . . 35 Initial . | . . . . . Average 10 | . 42 . . 2 Influence Increases 175 | . 85 . . 90 Destroy 0b10 Robot/C 120 | . 60 . . 60 Destroy Leader 20 | . 10 . . 10 Allied During Kill 4 | . . . . 4 Disable Machine 15 | . . . . 15 Destroy Structure 1 | . . . . 1 Lose Combat Pursuer 15 | . 15 . . . Influence Decreases 175 | . 50 35 . 90 Entered New Map 18 | . . 18 . . Time Decay 82 | . 50 17 . 15 Lost Part 35 | . . . . 35 Lost Ally 40 | . . . . 40 Squads Dispatched 2 | . . . . 2 Investigation . | . . . . . Extermination . | . . . . . Reinforcement . | . . . . . Assault 2 | . . . . 2 Garrison . | . . . . . Intercept . | . . . . . Searches Triggered . | . . . . . Construction Impeded . | . . . . . Haulers Reinforced . | . . . . . Active Scanning Responses . | . . . . . Cargo Convoy Interrupts . | . . . . . Stealth | -11 -10 -10 -8 -8 --------- Run | Yrd Mat Sub Mat Sto Distress Signals 1 | . . . 1 . Communications Jammed . | . . . . . Distress Signals . | . . . . . Times Spotted 20 | . 4 5 1 10 Peak Tracking Total 7 | . 3 2 2 7 Tactical Retreats 1 | . 1 . . . Traps | -11 -10 -10 -8 -8 ------- Run | Yrd Mat Sub Mat Sto Traps Triggered . | . . . . . Indirectly . | . . . . . Trap Hack Attempts . | . . . . . Triggered . | . . . . . Disarmed . | . . . . . Reprogrammed . | . . . . . Reused . | . . . . . Traps Extracted . | . . . . . Installed . | . . . . . Triggered . | . . . . . Machines | -11 -10 -10 -8 -8 ---------- Run | Yrd Mat Sub Mat Sto Machines Disabled 1 | . . . . 1 Max in Single Turn 1 | . . . . 1 Machines Repaired . | . . . . . Machines Dismantled . | . . . . . Machines Sabotaged . | . . . . . Overloaded Fab Kills . | . . . . . Hacking | -11 -10 -10 -8 -8 --------- Run | Yrd Mat Sub Mat Sto Machines Accessed . | . . . . . Terminals . | . . . . . Fabricators . | . . . . . Repair Stations . | . . . . . Recycling Units . | . . . . . Scanalyzers . | . . . . . Garrison Access . | . . . . . Total Hacks . | . . . . . Successful . | . . . . . Failed . | . . . . . Catastrophic . | . . . . . Database Lockouts . | . . . . . Manual . | . . . . . Terminals . | . . . . . Fabricators . | . . . . . Repair Stations . | . . . . . Recycling Units . | . . . . . Scanalyzers . | . . . . . Garrison Access . | . . . . . Terminal Hacks . | . . . . . Fabricator Hacks . | . . . . . Repair Station Hacks . | . . . . . Recycling Unit Hacks . | . . . . . Scanalyzer . | . . . . . Garrison Access Hacks . | . . . . . Unauthorized Hacks . | . . . . . Terminals . | . . . . . Fabricators . | . . . . . Repair Stations . | . . . . . Recycling Units . | . . . . . Scanalyzers . | . . . . . Garrison Access . | . . . . . Data Cores Recovered . | . . . . . Used . | . . . . . Hacking Detections . | . . . . . Full Trace Events . | . . . . . Feedback Events . | . . . . . Feedback Blocked . | . . . . . Robot Schematics Acquired . | . . . . . Robots Built . | . . . . . Authchips . | . . . . . Time . | . . . . . Total Robot Build Rating . | . . . . . Part Schematics Acquired . | . . . . . Parts Built . | . . . . . Authchips . | . . . . . Time . | . . . . . Total Part Build Rating . | . . . . . Part Studies Acquired . | . . . . . Parts Repaired . | . . . . . Time . | . . . . . Parts Recycled . | . . . . . Recycled Matter . | . . . . . Retrieved Matter . | . . . . . Retrieved Components . | . . . . . Parts Scanalyzed . | . . . . . Part Schematics Acquired . | . . . . . Parts Damaged . | . . . . . Bothacking | -11 -10 -10 -8 -8 ------------ Run | Yrd Mat Sub Mat Sto Used RIF Installer . | . . . . . Robots Hacked . | . . . . . Non-combat . | . . . . . Combat . | . . . . . Robot Hacks Applied . | . . . . . Relay Couplers Released . | . . . . . Fabnet Peak Effective % . | . . . . . Robots Rewired . | . . . . . Allies Hacked . | . . . . . Hacks Repelled . | . . . . . Allies | -11 -10 -10 -8 -8 -------- Run | Yrd Mat Sub Mat Sto Total Allies 2 | . . . . 2 Largest Group 2 | . . . . 2 Highest-Rated Group 62 | . . . . 62 Highest-Rated Ally 31 | . . . . 31 Total Orders . | . . . . . Ally Attacks 9 | . . . . 9 Total Damage 185 | . . . . 185 Kills 1 | . . . . 1 Allies Corrupted . | . . . . . Allies Melted 1 | . . . . 1 Intel | -11 -10 -10 -8 -8 ------- Run | Yrd Mat Sub Mat Sto Active Infowar (turns) . | . . . . . Robot Analysis Total . | . . . . . Derelict Logs Recovered 1 | . . 1 . . Drone Launches . | . . . . . Drone Recoveries . | . . . . . Exploration | -11 -10 -10 -8 -8 ------------- Run | Yrd Mat Sub Mat Sto Turns Passed 986 | 78 135 353 160 260 Spaces Moved 414 | 50 62 158 63 81 Core 29 | 16 . . . 13 Treads 158 | . 2 156 . . Legs 222 | 34 60 2 63 63 Wheels 5 | . . . . 5 Hover . | . . . . . Flight . | . . . . . Fastest Speed 50 | 50 120 120 190 50 Average Speed 171 | 121 121 159 225 222 Slowest Speed 260 | 200 160 160 260 260 Overloaded Moves . | . . . . . Propulsion Burnouts . | . . . . . Robots Hopped . | . . . . . Potential Cave-ins . | . . . . . Cave-ins Triggered . | . . . . . Exploration Rate (%) 11 | 5 14 13 7 17 Regions Visited 4 Branch Regions 2 Pre-discovered Areas 1 | . . 1 . . Known Exits Taken . | . . . . . Unknown Exits Taken 4 | 1 1 1 1 . Scrap Searched 5 | . . 5 . . Spaces Dug . | . . . . . Terrain Destroyed . | . . . . . Melee . | . . . . . Projectile . | . . . . . AOE . | . . . . . Terrain Rammed . | . . . . . Walls Destroyed . | . . . . . Machines Disabled . | . . . . . Actions | -11 -10 -10 -8 -8 --------- Run | Yrd Mat Sub Mat Sto Total 615 | 67 112 217 81 138 Wait 80 | . 43 14 . 23 Move 410 | 49 61 157 62 81 Hop . | . . . . . Pick Up 36 | 12 1 7 8 8 Fast Attach 4 | . . 2 . 2 Attach 20 | 6 . 4 4 6 Detach 1 | . . . . 1 Swap 13 | . 2 3 5 3 Drop 10 | . . 5 2 3 Fire 41 | . 5 25 . 11 Melee . | . . . . . Ram . | . . . . . Kick . | . . . . . Crush . | . . . . . Escape Stasis . | . . . . . Rewire . | . . . . . Trap . | . . . . . Miscellaneous . | . . . . . Route ------- -11/Scrapyard -10/Materials -10/Subcaves -8/Materials -8/Storage History --------- Turn | Location | Event 31 | -11/Scrapyard | Discovered new exit (range 14) 79 | -11/Scrapyard | Entered Materials 209 | -10/Materials | Discovered new exit (range 3) 214 | -10/Materials | Entered Subcaves 226 | -10/Subcaves | Learned location of Zion (-7) 322 | -10/Subcaves | Build established: Mutant 454 | -10/Subcaves | Discovered new exit (range 11) 567 | -10/Subcaves | Entered Materials 567 | -8/Materials | Evolved 4 slots: Propulsion x1, Utility x1, Weapon x2 620 | -8/Materials | Discovered new exit (range 13) 727 | -8/Materials | Entered Storage 819 | -8/Storage | Met a pair of Derelict thieves 940 | -8/Storage | Core integrity fell below 50% 951 | -8/Storage | System corruption reached 10% 970 | -8/Storage | Core integrity fell below 20% 987 | -8/Storage | Destroyed by G-47 Trooper with Particle Gun Last Messages --------------- 00950_ Flamer destroyed. 00950_ System corrupted by crushing effect (+2). 00960_ Hvy. Laser destroyed. 00960_ System corrupted by crushing effect (+2). 00961_ K-01 Serf collects debris. 00962_ Overheating: Matter decay (-17). 00962_ Hvy. Laser destroyed. 00964_ K-01 Serf collects debris. 00965_ Critical hit (Smash). 00965_ Battle Rifle destroyed. 00965_ System corrupted by crushing effect (+4). 00966_ Overheating: Energy bleed (-9). 00966_ Dropped Lrg. Storage Unit. 00968_ K-01 Serf collects debris. 00970_ >BDK3,S5FATJFTIO&D3&/&YJ7K NZ1N